bitfinex/quotes_SOLUSD_20251018
["timestamp","ask_amount","ask_price","bid_price","bid_amount"]
[1760760951180,1.4556435,184.8,184.78,54.21156722]
[1760760951386,1.4556435,184.8,184.78,48.8]
[1760760952483,1.4556435,184.79,184.78,48.1]
[1760760952684,1.4556435,184.79,184.76,48.1]
[1760760952883,1.4556435,184.77,184.76,48.1]
[1760760953199,1.8156435,184.77,184.7,0.7]
[1760760953500,1.4556435,184.73,184.7,0.7]
[1760760954197,1.4556435,184.72,184.71,0.7]
[1760760955687,1.4556435,184.72,184.69,0.7]
[1760760955886,1.4556435,184.71,184.69,0.7]
[1760760956098,1.4556435,184.71,184.7,0.7]
[1760760956694,1.4556435,184.71,184.68,5.41457379]
[1760760956893,1.4556435,184.71,184.69,0.7]
[1760760957404,0.50216157,184.74,184.7,22.88]
[1760760957715,1.4556435,184.71,184.7,22.88]
[1760760958289,1.4556435,184.71,184.69,23.58]
[1760760958489,1.4556435,184.71,184.7,22.88]
[1760760960123,1.4556435,184.71,184.67,23.58]
[1760760960412,1.4556435,184.69,184.68,0.7]
[1760760960592,0.67669987,184.72,184.67,22.88]
[1760760960593,0.36,184.71,184.67,22.88]
[1760760960800,1.4556435,184.68,184.67,23.58]
[1760760961011,1.4556435,184.68,184.67,0.7]
[1760760961190,1.4556435,184.68,184.67,23.58]
[1760760961710,1.4556435,184.68,184.67,0.7]
[1760760962510,4.34004689,184.75,184.67,0.7]
[1760760962712,1.4556435,184.73,184.67,6.11506471]
[1760760962913,1.4556435,184.73,184.68,0.7]
[1760760963116,0.67648013,184.78,184.7,22.88]
[1760760963418,1.4556435,184.77,184.71,0.7]
[1760760964013,0.28432314,184.78,184.72,5.41359896]
[1760760964014,1.4556435,184.75,184.72,5.41359896]
[1760760964208,1.4556435,184.75,184.73,0.71]
[1760760965316,1.4556435,184.76,184.73,0.71]
[1760760965695,1.4556435,184.75,184.71,0.71]
[1760760966818,1.3208765,184.76,184.72,0.71]
[1760760967117,1.4556435,184.75,184.72,0.71]
[1760760968429,1.4556435,184.75,184.69,13.5361506]
[1760760968602,1.4556435,184.76,184.73,0.65]
[1760760968798,1.4556435,184.76,184.74,0.65]
[1760760969007,1.4556435,184.77,184.74,0.65]
[1760760969317,2.13216025,184.77,184.74,0.65]
[1760760969524,1.4556435,184.77,184.74,0.65]
[1760760971703,1.4556435,184.78,184.75,0.65]
[1760760973403,1.4556435,184.78,184.68,67.05170023]
[1760760973625,1.4556435,184.78,184.69,0.65]
[1760760973833,1.4556435,184.78,184.7,18.94964807]
[1760760974005,1.4556435,184.78,184.71,0.65]
[1760760974206,1.4556435,184.77,184.71,0.65]
[1760760974416,1.4556435,184.76,184.71,0.65]
[1760760974802,1.4556435,184.75,184.7,5.41418516]
[1760760975136,1.4556435,184.75,184.71,0.65]
[1760760975301,1.4556435,184.75,184.72,0.65]
[1760760975498,1.4556435,184.75,184.73,0.65]
[1760760975700,1.4556435,184.74,184.7,54.16418516]
[1760760976029,1.4556435,184.74,184.71,0.65]
[1760760976903,1.4556435,184.73,184.71,0.65]
[1760760977635,0.67658998,184.75,184.71,0.65]
[1760760977810,1.4556435,184.74,184.71,0.65]
[1760760978801,1.4556435,184.74,184.69,5.41446228]
[1760760979006,22.88,184.77,184.72,0.65]
[1760760979007,24.3356435,184.77,184.72,0.65]
[1760760979534,1.4556435,184.76,184.73,0.65]
[1760760979822,1.4556435,184.75,184.73,0.65]
[1760760981227,1.4556435,184.75,184.7,0.65]
[1760760981404,1.4556435,184.75,184.71,0.65]
[1760760981405,1.4556435,184.73,184.71,0.65]
[1760760982222,1.4556435,184.74,184.71,0.65]
[1760760982730,1.4556435,184.74,184.69,0.65]
[1760760982916,1.4556435,184.7,184.63,0.65]
[1760760983117,1.1788248,184.73,184.63,0.65]
[1760760983118,1.4556435,184.69,184.63,6.06623788]
[1760760983323,1.4556435,184.7,184.64,0.65]
[1760760983529,1.4556435,184.71,184.64,0.65]
[1760760983713,1.73996664,184.72,184.64,0.65]
[1760760985333,1.4556435,184.71,184.65,5.41565123]
[1760760985533,1.4556435,184.71,184.66,0.65]
[1760760985723,1.4556435,184.71,184.67,0.65]
[1760760986033,1.4556435,184.7,184.67,0.65]
[1760760986213,1.4556435,184.69,184.65,5.41565123]
[1760760986416,1.4556435,184.67,184.62,0.65]
[1760760986611,1.4556435,184.67,184.63,0.65]
[1760760987222,22.88,184.68,184.64,0.65]
[1760760987418,1.4556435,184.67,184.64,0.65]
[1760760987944,1.4556435,184.65,184.61,0.75]
[1760760988234,1.4556435,184.66,184.61,6.16668427]
[1760760988426,1.4556435,184.66,184.62,0.65]
[1760760989447,2.27842927,184.66,184.63,5.41623788]
[1760760989635,2.27842927,184.67,184.64,0.65]
[1760760990216,2.27842927,184.69,184.65,0.65]
[1760760990416,2.27842927,184.69,184.66,0.65]
[1760760990617,2.27842927,184.71,184.67,0.65]
[1760760991231,2.27842927,184.69,184.65,0.65]
[1760760991649,2.27842927,184.69,184.66,0.65]
[1760760991835,1.0367365,184.71,184.66,0.65]
[1760760991836,2.27842927,184.68,184.66,0.65]
[1760760992136,2.27842927,184.68,184.64,0.65]
[1760760992338,2.27842927,184.67,184.64,0.65]
[1760760992512,2.27842927,184.68,184.65,0.65]
[1760760993125,2.27842927,184.66,184.63,5.41623788]
[1760760993648,2.27842927,184.66,184.63,6.06623788]
[1760760994245,2.27842927,184.66,184.63,0.65]
[1760760994436,2.27842927,184.67,184.64,0.65]
[1760760994846,2.27842927,184.67,184.65,0.65]
[1760760995454,2.27842927,184.67,184.63,0.65]
[1760760995743,2.27842927,184.67,184.64,6.06594454]
[1760760996828,0.14216157,184.69,184.65,0.65]
[1760760997026,0.67677314,184.7,184.65,0.65]
[1760760997027,2.27842927,184.68,184.65,0.65]
[1760760997429,2.27842927,184.67,184.65,0.65]
[1760760998117,2.27842927,184.71,184.66,0.66]
[1760760998319,2.27842927,184.8,184.66,0.66]
[1760760998320,0.36,184.78,184.66,0.66]
[1760760998539,0.67651675,184.77,184.66,48.76]
[1760760998739,2.27842927,184.75,184.67,0.66]
[1760760999040,2.27842927,184.75,184.68,18.95170023]
[1760760999219,2.27842927,184.75,184.69,0.66]
[1760761001248,0.67655336,184.76,184.7,5.41418516]
[1760761001426,2.27842927,184.75,184.7,6.07418516]
[1760761001622,2.27842927,184.75,184.71,0.66]
[1760761002451,2.27842927,184.75,184.71,6.07380222]
[1760761002630,2.63842927,184.75,184.69,6.07418596]
[1760761002825,2.27842927,184.73,184.69,6.07418596]
[1760761003137,2.27842927,184.73,184.69,5.41418596]
[1760761003450,2.27842927,184.73,184.7,0.66]
[1760761003826,0.36,184.75,184.69,5.41418596]
[1760761003827,25.15842927,184.75,184.71,0.66]
[1760761004149,2.27842927,184.75,184.71,0.66]
[1760761004621,2.27842927,184.75,184.71,6.07386124]
[1760761005436,25.44275241,184.76,184.67,18.95272648]
[1760761005637,25.44275241,184.76,184.72,0.66]
[1760761005844,23.16432314,184.76,184.72,0.66]
[1760761006030,25.44275241,184.76,184.72,0.66]
[1760761006553,2.42059084,184.78,184.73,0.66]
[1760761006745,2.27842927,184.79,184.74,0.66]
[1760761006947,2.27842927,184.79,184.75,0.66]
[1760761007730,2.27842927,184.78,184.75,0.66]
[1760761008637,2.27842927,184.78,184.75,6.07271852]
[1760761009631,2.27842927,184.78,184.71,18.94790386]
[1760761009825,2.27842927,184.77,184.71,6.07389204]
[1760761010169,2.27842927,184.76,184.72,0.66]
[1760761010743,2.27842927,184.76,184.73,0.66]
[1760761010942,2.27842927,184.77,184.74,0.66]
[1760761011850,2.27842927,184.77,184.73,5.41306243]
[1760761012054,2.27842927,184.77,184.73,0.66]
[1760761013858,2.27842927,184.77,184.75,22.88]
[1760761016534,2.27842927,184.77,184.75,23.54]
[1760761016737,2.27842927,184.77,184.75,0.66]
[1760761018459,2.27842927,184.77,184.73,6.0733059]
[1760761018958,2.27842927,184.77,184.74,0.66]
[1760761020640,2.27842927,184.77,184.73,5.4133059]
[1760761020956,2.27842927,184.77,184.74,0.66]
[1760761021162,2.27842927,184.75,184.69,48.76]
[1760761021349,1.03655336,184.76,184.7,0.66]
[1760761021350,2.27842927,184.73,184.7,0.66]
[1760761021543,2.27842927,184.72,184.7,0.66]
[1760761021749,0.14216157,184.75,184.69,5.41425984]
[1760761021945,2.27842927,184.72,184.69,6.07425984]
[1760761022163,2.27842927,184.72,184.7,0.66]
[1760761022947,0.67662661,184.74,184.7,0.66]
[1760761023144,2.27842927,184.72,184.71,0.66]
[1760761023342,2.27842927,184.73,184.71,0.66]
[1760761024143,2.27842927,184.74,184.72,0.69]
[1760761026046,2.27842927,184.75,184.73,0.69]
[1760761026750,2.27842927,184.75,184.71,0.69]
[1760761026960,2.27842927,184.75,184.72,0.69]
[1760761027946,2.27842927,184.77,184.74,5.41301288]
[1760761028148,2.27842927,184.77,184.75,0.67]
[1760761028768,2.27842927,184.76,184.73,5.41325723]
[1760761028953,2.27842927,184.76,184.72,5.41353293]
[1760761029155,2.27842927,184.74,184.71,6.08387314]
[1760761029358,2.27842927,184.74,184.72,0.67]
[1760761030364,2.27842927,184.74,184.69,5.41418902]
[1760761030574,2.27842927,184.74,184.71,0.67]
[1760761030970,2.27842927,184.73,184.71,0.67]
[1760761031672,2.27842927,184.74,184.71,0.67]
[1760761033276,2.27842927,184.74,184.72,0.67]
[1760761033469,2.27842927,184.74,184.73,0.67]
[1760761033651,0.67651675,184.77,184.73,0.67]
[1760761033652,2.27842927,184.75,184.73,0.67]
[1760761034369,2.27842927,184.75,184.74,0.67]
[1760761034770,2.27842927,184.75,184.72,0.67]
[1760761036253,0.67651675,184.77,184.7,5.41394758]
[1760761036254,2.63842927,184.74,184.7,5.41394758]
[1760761036471,2.27842927,184.73,184.7,5.41394758]
[1760761036667,2.63842927,184.73,184.69,48.1]
[1760761036868,2.63842927,184.73,184.67,0.67]
[1760761037254,2.63842927,184.73,184.68,5.41477149]
[1760761037461,2.63842927,184.73,184.69,0.67]
[1760761037755,2.27842927,184.71,184.69,0.67]
[1760761038665,0.28432314,184.75,184.7,0.67]
[1760761038666,2.27842927,184.72,184.7,0.67]
[1760761038855,2.27842927,184.73,184.71,0.67]
[1760761039756,2.27842927,184.73,184.7,0.67]
[1760761039963,2.27842927,184.72,184.67,13.53764725]
[1760761040188,2.27842927,184.72,184.68,0.67]
[1760761040364,0.67662661,184.74,184.71,22.88]
[1760761040681,2.27842927,184.77,184.72,0.67]
[1760761041181,2.27842927,184.78,184.72,0.67]
[1760761041765,2.27842927,184.78,184.73,5.4133059]
[1760761042067,2.63842927,184.78,184.73,5.4133059]
[1760761042269,2.27842927,184.78,184.74,0.67]
[1760761042469,2.27842927,184.78,184.75,0.67]
[1760761042860,2.27842927,184.78,184.76,0.67]
[1760761044081,2.27842927,184.78,184.76,6.08240151]
[1760761045079,2.27842927,184.8,184.77,0.67]
[1760761045283,2.27842927,184.8,184.76,5.41240151]
[1760761045284,2.27842927,184.8,184.78,0.67]
[1760761046164,2.27842927,184.8,184.76,6.08240151]
[1760761046361,2.27842927,184.8,184.77,0.67]
[1760761047179,2.27842927,184.8,184.77,6.08212929]
[1760761047492,23.02216157,184.82,184.77,6.08212929]
[1760761047493,2.42059084,184.82,184.78,0.67]
[1760761047784,2.27842928,184.85,184.78,0.67]
[1760761047986,0.96058368,184.84,184.79,0.67]
[1760761048179,0.96058368,184.84,184.77,67.0424643]
[1760761048483,0.96058368,184.84,184.8,0.67]
[1760761049082,2.27842927,184.83,184.8,0.67]
[1760761049384,2.27842927,184.83,184.77,67.0424643]
[1760761049576,0.67633373,184.82,184.77,54.18212929]
[1760761049777,0.67633373,184.82,184.78,0.67]
[1760761049967,2.27842927,184.81,184.78,0.67]
[1760761050985,2.27842927,184.81,184.77,48.1]
[1760761051185,2.27842927,184.81,184.77,48.77]
[1760761051390,0.14216157,184.82,184.78,0.67]
[1760761051570,0.14216157,184.82,184.79,0.67]
[1760761051571,1.45604744,184.81,184.79,0.67]
[1760761051893,0.28432314,184.82,184.8,0.67]
[1760761052591,0.28432314,184.82,184.78,0.67]
[1760761052890,0.28432314,184.82,184.79,0.67]
[1760761054994,0.14216157,184.82,184.79,0.67]
[1760761055214,1.45604744,184.81,184.79,0.67]
[1760761060209,1.45604744,184.81,184.74,22.88]
[1760761060388,1.45604744,184.78,184.75,0.72]
[1760761060588,1.45604744,184.78,184.76,0.72]
[1760761060787,1.45604744,184.78,184.75,0.72]
[1760761062207,1.45604744,184.78,184.72,13.5339974]
[1760761062504,1.45604744,184.78,184.75,0.72]
[1760761062699,1.45604744,184.78,184.72,13.5339974]
[1760761062903,1.45604744,184.78,184.74,5.41301288]
[1760761063094,1.45604744,184.78,184.75,0.72]
[1760761063606,1.45604744,184.78,184.76,0.72]
[1760761067395,0.42648471,184.81,184.77,0.72]
[1760761067710,2.55890247,184.81,184.78,0.72]
[1760761068193,2.55890247,184.81,184.76,5.41230082]
[1760761068383,2.55890247,184.81,184.77,0.72]
[1760761069311,0.1,184.8,184.65,18.27824953]
[1760761069621,0.1,184.8,184.61,0.1]
[1760761069622,0.14216157,184.62,184.61,0.1]
[1760761069786,0.14216157,184.62,184.56,0.1]
[1760761069787,0.14216157,184.61,184.56,0.1]
[1760761069991,1.45604744,184.6,184.56,0.1]
[1760761070296,0.42648471,184.59,184.56,0.1]
[1760761070498,1.88253215,184.57,184.56,0.1]
[1760761070688,2.55978197,184.57,184.56,0.1]
[1760761071203,1.88253215,184.56,184.54,0.1]
[1760761071402,1.45604744,184.55,184.54,0.1]
[1760761071907,0.67724982,184.57,184.54,0.82]
[1760761072107,1.45604744,184.55,184.54,0.1]
[1760761072814,1.45604744,184.55,184.54,0.82]
[1760761074505,1.45604744,184.55,184.54,0.1]
[1760761074897,1.45604744,184.57,184.54,0.82]
[1760761075097,0.96142622,184.61,184.54,6.23881019]
[1760761075419,1.45604744,184.59,184.55,0.72]
[1760761075616,1.45604744,184.59,184.55,6.13836944]
[1760761075819,1.45604744,184.6,184.56,0.72]
[1760761076119,0.6769564,184.65,184.56,0.72]
[1760761076302,1.45604744,184.61,184.56,0.72]
[1760761076702,1.45604744,184.6,184.56,0.72]
[1760761077104,1.45604744,184.59,184.56,0.72]
[1760761077299,1.45604744,184.57,184.55,48.1]
[1760761077503,1.45604744,184.57,184.56,0.72]
[1760761077706,1.45604744,184.58,184.56,0.72]
[1760761077911,1.45604744,184.59,184.56,0.72]
[1760761078198,1.45604744,184.59,184.57,0.72]
[1760761078415,1.45604744,184.59,184.58,0.72]
[1760761079524,0.14216157,184.63,184.58,0.72]
[1760761079818,1.45604744,184.6,184.58,0.72]
[1760761080412,1.45604744,184.6,184.55,0.72]
[1760761080619,1.45604744,184.6,184.56,0.72]
[1760761080811,1.45604744,184.6,184.57,0.72]
[1760761081018,1.45604744,184.6,184.58,0.72]
[1760761081212,1.45604744,184.6,184.54,5.51887678]
[1760761081412,1.45604744,184.6,184.55,6.13852087]
[1760761081620,1.45604744,184.6,184.56,0.72]
[1760761082120,1.45604744,184.6,184.55,5.41852087]
[1760761082418,5.51596411,184.64,184.55,5.41852087]
[1760761082419,16.29504902,184.68,184.57,0.72]
[1760761082622,1.45604744,184.66,184.57,0.72]
[1760761083519,1.45604744,184.66,184.58,5.41770506]
[1760761083721,0.14216157,184.68,184.59,0.72]
[1760761083920,1.45604744,184.66,184.59,0.72]
[1760761084624,1.45604744,184.69,184.61,22.88]
[1760761084823,1.45604744,184.69,184.62,0.71]
[1760761085024,1.45604744,184.71,184.62,0.71]
[1760761085520,1.45604744,184.71,184.63,5.41623788]
[1760761085913,1.45604744,184.71,184.64,0.71]
[1760761086314,24.33604744,184.71,184.64,0.71]
[1760761086524,25.01278394,184.71,184.64,0.71]
[1760761086717,24.33604744,184.71,184.64,0.71]
[1760761087525,24.33604744,184.71,184.65,5.41565123]
[1760761087724,24.33604744,184.71,184.66,0.71]
[1760761088628,24.33604744,184.71,184.67,0.7]
[1760761089629,22.88,184.7,184.67,0.7]
[1760761090023,0.67680978,184.69,184.63,5.41621822]
[1760761090223,1.45604744,184.71,184.64,0.7]
[1760761090728,1.45604744,184.7,184.64,6.11577386]
[1760761090931,1.45604744,184.7,184.65,0.7]
[1760761091116,1.45604744,184.7,184.66,0.7]
[1760761091814,24.33604744,184.7,184.66,0.7]
[1760761092342,24.33604744,184.7,184.61,22.88]
[1760761092517,0.14216157,184.56,184.54,0.1]
[1760761092828,23.55728651,184.56,184.54,0.1]
[1760761093210,23.84160965,184.56,184.54,0.1]
[1760761093633,25.29765709,184.56,184.54,0.1]
[1760761093936,23.84160965,184.56,184.54,0.1]
[1760761094234,1.45604744,184.55,184.54,0.1]
[1760761094429,24.76253215,184.55,184.54,0.1]
[1760761096018,24.76253215,184.55,184.49,6.02027048]
[1760761096321,1.45604744,184.53,184.48,5.42062453]
[1760761096520,1.45604744,184.53,184.49,0.7]
[1760761097136,0.14216157,184.54,184.5,0.7]
[1760761097339,0.42648471,184.54,184.51,0.7]
[1760761097539,1.88253215,184.54,184.51,0.7]
[1760761097720,0.42648471,184.54,184.52,0.7]
[1760761098431,22.88,184.55,184.53,0.7]
[1760761098638,22.88,184.55,184.5,5.41996145]
[1760761098639,22.88,184.55,184.54,0.7]
[1760761098827,0.42648471,184.56,184.54,0.7]
[1760761099742,1.45604744,184.55,184.51,5.41968474]
[1760761100039,1.45604744,184.55,184.52,0.7]
[1760761100254,1.45604744,184.55,184.53,0.7]
[1760761101436,0.42648471,184.56,184.53,0.7]
[1760761101437,1.45604744,184.56,184.53,0.7]
[1760761103839,0.14216157,184.53,184.47,0.1]
[1760761104140,1.45604744,184.51,184.48,0.7]
[1760761105025,1.45604744,184.51,184.48,6.12042458]
[1760761105225,1.45604744,184.51,184.49,0.7]
[1760761105524,1.45604744,184.51,184.5,0.7]
[1760761105829,1.45604744,184.51,184.49,0.7]
[1760761107644,1.45604744,184.51,184.47,6.22092398]
[1760761108037,1.45604744,184.51,184.48,0.7]
[1760761108622,1.45604744,184.51,184.47,5.52092398]
[1760761108623,1.45604744,184.49,184.47,0.1]
[1760761109024,0.96175648,184.52,184.48,0.7]
[1760761109330,1.45604744,184.51,184.48,0.7]
[1760761109942,1.45604744,184.49,184.47,5.520928]
[1760761110142,1.45604744,184.49,184.47,0.1]
[1760761113152,23.84175648,184.52,184.47,0.8]
[1760761113355,2.28297108,184.48,184.47,0.8]
[1760761114031,2.28297108,184.48,184.47,0.1]
[1760761114720,2.28297108,184.48,184.45,54.22151505]
[1760761114721,2.28297108,184.48,184.45,53.82151505]
[1760761114949,2.28297108,184.48,184.46,0.7]
[1760761115152,2.28297108,184.48,184.45,53.12151505]
[1760761115444,2.28297108,184.48,184.45,47.7]
[1760761115753,2.28297108,184.48,184.45,0.7]
[1760761115952,2.28297108,184.49,184.46,0.7]
[1760761116452,2.28297108,184.51,184.47,0.7]
[1760761116746,2.28297108,184.51,184.48,0.7]
[1760761117054,2.28297108,184.51,184.49,0.7]
[1760761117434,2.28297108,184.51,184.44,13.55454348]
[1760761117435,2.28297108,184.5,184.45,0.7]
[1760761117763,2.28297108,184.5,184.46,0.7]
[1760761119081,2.28297108,184.5,184.47,5.42093565]
[1760761119277,2.28297108,184.5,184.48,0.7]
[1760761119478,2.28297108,184.5,184.49,0.7]
[1760761120953,2.28297108,184.55,184.49,0.7]
[1760761121172,2.28297108,184.55,184.5,5.4200542]
[1760761121480,2.28297108,184.55,184.51,0.7]
[1760761121652,2.28297108,184.55,184.52,0.7]
[1760761122081,0.42648471,184.52,184.44,13.55401481]
[1760761122267,2.28297108,184.51,184.46,0.7]
[1760761123182,2.28297108,184.51,184.47,5.42093565]
[1760761123377,2.28297108,184.51,184.48,0.7]
[1760761124958,2.28297108,184.51,184.48,6.12061749]
[1760761125665,2.28297108,184.51,184.49,0.7]
[1760761126183,2.28297108,184.51,184.48,5.42061749]
[1760761126384,2.28297108,184.51,184.48,6.12061749]
[1760761127689,2.28297108,184.52,184.49,0.7]
[1760761127859,2.28297108,184.52,184.5,0.7]
[1760761128068,2.28297108,184.53,184.48,5.42061749]
[1760761128394,2.28297108,184.53,184.49,0.7]
[1760761128561,2.28297108,184.53,184.5,6.11984287]
[1760761128757,2.28297108,184.54,184.5,6.11984287]
[1760761128961,2.28297108,184.54,184.51,0.7]
[1760761129783,2.28297108,184.53,184.51,0.7]
[1760761130309,2.28297108,184.54,184.51,6.11960954]
[1760761130866,2.28297108,184.55,184.52,0.7]
[1760761131059,0.42648471,184.52,184.47,0.7]
[1760761131270,2.28297108,184.52,184.48,0.7]
[1760761131479,25.16297108,184.54,184.48,0.7]
[1760761131784,2.28297108,184.54,184.48,0.7]
[1760761131984,2.28297108,184.54,184.49,5.42034798]
[1760761132189,2.28297108,184.54,184.5,0.7]
[1760761132371,2.28297108,184.54,184.51,0.7]
[1760761134085,2.28297108,184.54,184.42,27.11093764]
[1760761134086,0.1,184.53,184.43,0.7]
[1760761134293,2.28297108,184.49,184.44,0.7]
[1760761134797,0.14216157,184.5,184.44,0.7]
[1760761134970,2.28297108,184.49,184.44,0.7]
[1760761135398,2.28297108,184.49,184.45,5.42152344]
[1760761135579,2.28297108,184.49,184.46,0.7]
[1760761135987,2.28297108,184.49,184.44,5.42179175]
[1760761136178,2.28297108,184.47,184.45,0.7]
[1760761136366,2.28297108,184.47,184.43,0.7]
[1760761136571,2.28297108,184.47,184.44,0.7]
[1760761137280,2.28297108,184.47,184.42,6.12211694]
[1760761137583,2.28297108,184.47,184.43,0.7]
[1760761137843,0.67743334,184.52,184.43,0.7]
[1760761138095,2.28297108,184.51,184.43,0.7]
[1760761138307,2.28297108,184.5,184.43,0.7]
[1760761138503,2.28297108,184.5,184.41,18.97944795]
[1760761138678,2.28297108,184.5,184.41,46.73944795]
[1760761138884,2.28297108,184.5,184.41,73.85294504]
[1760761140575,2.28297108,184.5,184.43,18.97738979]
[1760761140776,2.28297108,184.5,184.44,0.7]
[1760761141807,2.28297108,184.5,184.44,48.1]
[1760761141995,2.28297108,184.5,184.45,5.42152344]
[1760761142200,2.28297108,184.5,184.46,0.7]
[1760761142504,2.28297108,184.52,184.47,0.7]
[1760761142806,2.28297108,184.51,184.48,0.7]
[1760761143809,2.28297108,184.52,184.49,0.71]
[1760761144004,2.28297108,184.52,184.48,5.4206418]
[1760761144307,2.28297108,184.52,184.48,6.1306418]
[1760761144893,2.28297108,184.53,184.49,0.71]
[1760761145094,2.28297108,184.53,184.48,18.9722463]
[1760761145302,2.28297108,184.53,184.5,0.71]
[1760761145506,2.28297108,184.54,184.48,18.9722463]
[1760761145687,2.28297108,184.54,184.49,0.71]
[1760761145891,2.28297108,184.54,184.5,0.71]
[1760761146100,2.28297108,184.54,184.5,6.12985776]
[1760761146711,2.28297108,184.53,184.51,0.71]
[1760761147117,2.28297108,184.54,184.51,0.71]
[1760761147336,0.81948478,184.55,184.51,0.71]
[1760761147493,2.28297108,184.54,184.51,0.71]
[1760761147999,0.67728651,184.56,184.52,5.41946672]
[1760761148189,2.28297108,184.57,184.53,0.72]
[1760761148392,2.28297108,184.57,184.54,0.72]
[1760761149217,2.28297108,184.57,184.55,5.41858574]
[1760761150323,2.28297108,184.57,184.53,0.72]
[1760761150324,2.28297108,184.56,184.53,5.41888942]
[1760761151416,2.28297108,184.55,184.52,5.41945011]
[1760761151617,2.28297108,184.55,184.52,6.13945011]
[1760761152497,2.28297108,184.55,184.53,0.72]
[1760761152896,2.28297108,184.56,184.53,0.72]
[1760761154020,2.28297108,184.56,184.5,66.3701897]
[1760761154214,2.28297108,184.56,184.52,5.41946672]
[1760761154607,2.28297108,184.56,184.53,0.72]
[1760761155192,0.6,184.58,184.54,0.72]
[1760761155514,2.28297108,184.57,184.54,0.72]
[1760761155819,2.28297108,184.58,184.55,0.72]
[1760761156111,2.28297108,184.58,184.56,6.13818817]
[1760761157415,2.28297108,184.59,184.56,6.13818817]
[1760761157823,0.6,184.65,184.57,0.72]
[1760761158026,0.67684643,184.68,184.57,0.72]
[1760761158027,2.28297108,184.64,184.57,0.72]
[1760761158226,2.28297108,184.65,184.57,0.72]
[1760761158405,2.28297108,184.66,184.57,0.72]
[1760761158600,23.08,184.7,184.57,28.84]
[1760761158807,2.28297108,184.67,184.58,0.72]
[1760761159113,2.28297108,184.66,184.59,18.96094046]
[1760761159319,2.48297108,184.7,184.62,22.88]
[1760761159517,2.28297108,184.66,184.63,0.72]
[1760761159703,2.28297108,184.65,184.6,28.84]
[1760761159904,2.28297108,184.66,184.61,0.72]
[1760761160106,2.28297108,184.66,184.62,0.72]
[1760761160406,2.88297108,184.66,184.62,0.72]
[1760761160610,2.28297108,184.66,184.63,0.72]
[1760761160936,2.28297108,184.67,184.63,0.72]
[1760761161238,0.2,184.7,184.64,0.72]
[1760761161527,25.36297108,184.7,184.64,0.72]
[1760761162008,2.48297108,184.7,184.64,0.72]
[1760761162209,2.28297108,184.69,184.64,0.72]
[1760761162611,2.28297108,184.69,184.65,0.72]
[1760761163630,2.28297108,184.69,184.62,18.95785938]
[1760761163815,3.55981751,184.68,184.62,5.41653125]
[1760761164007,2.88297108,184.68,184.62,6.13653125]
[1760761164324,0.28432314,184.62,184.55,0.72]
[1760761164527,2.42513265,184.61,184.56,0.72]
[1760761164715,3.02513265,184.61,184.56,0.72]
[1760761164917,0.6,184.6,184.54,0.72]
[1760761165319,2.28297108,184.59,184.54,0.72]
[1760761165629,2.28297108,184.59,184.55,0.72]
[1760761165934,2.28297108,184.61,184.56,6.13829215]
[1760761166227,2.28297108,184.61,184.57,0.72]
[1760761166524,0.6770664,184.62,184.56,5.41829215]
[1760761166731,2.28297108,184.62,184.57,0.72]
[1760761167023,2.28297108,184.62,184.58,0.72]
[1760761167222,2.28297108,184.62,184.59,0.72]
[1760761167921,0.81915463,184.64,184.6,0.72]
[1760761167922,2.28297108,184.64,184.6,0.72]
[1760761168124,2.28297108,184.64,184.59,5.41723501]
[1760761168336,0.14216157,184.65,184.6,0.72]
[1760761168628,1.56124288,184.66,184.6,0.72]
[1760761168629,2.28297108,184.63,184.6,0.72]
[1760761170231,0.42648471,184.68,184.61,0.72]
[1760761170409,2.28297108,184.66,184.61,0.72]
[1760761170609,2.28297108,184.66,184.62,0.72]
[1760761171833,2.28297108,184.66,184.62,6.13628431]